[Event "Titled Tuesday Blitz June 07 Early 2022"]
[White "Terry, Renato"]
[Black "Suleymanli, Aydin"]
[WhiteFideId "3803457"]
[BlackFideId "13413937"]
[WhiteElo "2577"]
[BlackElo "2481"]
[Result "1-0"]
[Round "11"]
[TimeControl "180+1"]
[Date "2022.06.07"]
[WhiteClock "0:00:06"]
[BlackClock "0:00:06"]

1. e4 {[%clk 0:03:00]}  c6 {[%clk 0:02:52]} 2. Nf3 {[%clk 0:02:58]}  d5 {[%clk 0:02:52]} 3. exd5 {[%clk 0:02:59]}  cxd5 {[%clk 0:02:51]} 4. Ne5 {[%clk 0:02:59]}  a6 {[%clk 0:02:49]} 5. d4 {[%clk 0:03:00]}  Nc6 {[%clk 0:02:49]} 6. c3 {[%clk 0:03:00]}  Nxe5 {[%clk 0:02:43]} 7. dxe5 {[%clk 0:03:01]}  e6 {[%clk 0:02:41]} 8. Bd3 {[%clk 0:03:01]}  g6 {[%clk 0:02:38]} 9. Nd2 {[%clk 0:02:59]}  Bg7 {[%clk 0:02:37]} 10. Nf3 {[%clk 0:03:00]}  Ne7 {[%clk 0:02:37]} 11. h4 {[%clk 0:03:00]}  h6 {[%clk 0:02:37]} 12. Be3 {[%clk 0:02:56]}  Bd7 {[%clk 0:02:23]} 13. Qd2 {[%clk 0:02:48]}  Nc6 {[%clk 0:02:20]} 14. Bf4 {[%clk 0:02:46]}  Qc7 {[%clk 0:02:16]} 15. Qe3 {[%clk 0:02:44]}  g5 {[%clk 0:02:16]} 16. hxg5 {[%clk 0:02:33]}  hxg5 {[%clk 0:02:16]} 17. Rxh8+ {[%clk 0:02:32]}  Bxh8 {[%clk 0:02:17]} 18. Nxg5 {[%clk 0:02:31]}  Bxe5 {[%clk 0:02:14]} 19. Bxe5 {[%clk 0:02:11]}  Qxe5 {[%clk 0:02:14]} 20. Kd2 {[%clk 0:02:11]}  Ke7 {[%clk 0:02:03]} 21. f4 {[%clk 0:02:08]}  Qxe3+ {[%clk 0:02:02]} 22. Kxe3 {[%clk 0:02:09]}  f6 {[%clk 0:02:02]} 23. Nf3 {[%clk 0:02:08]}  Rg8 {[%clk 0:02:02]} 24. Kf2 {[%clk 0:02:06]}  e5 {[%clk 0:02:01]} 25. Re1 {[%clk 0:02:02]}  e4 {[%clk 0:01:56]} 26. Nd2 {[%clk 0:01:36]}  f5 {[%clk 0:01:51]} 27. Nb3 {[%clk 0:01:34]}  Nd8 {[%clk 0:00:42]} 28. Be2 {[%clk 0:01:27]}  Ne6 {[%clk 0:00:39]} 29. g3 {[%clk 0:01:27]}  Ba4 {[%clk 0:00:39]} 30. Nd2 {[%clk 0:01:07]}  Rh8 {[%clk 0:00:30]} 31. Nf1 {[%clk 0:01:03]}  d4 {[%clk 0:00:24]} 32. cxd4 {[%clk 0:00:57]}  Nxd4 {[%clk 0:00:25]} 33. Bc4 {[%clk 0:00:57]}  Bc6 {[%clk 0:00:25]} 34. Rd1 {[%clk 0:00:56]}  Nf3 {[%clk 0:00:22]} 35. Be2 {[%clk 0:00:51]}  Ke6 {[%clk 0:00:15]} 36. a3 {[%clk 0:00:50]}  Bd5 {[%clk 0:00:14]} 37. Rc1 {[%clk 0:00:45]}  Kd6 {[%clk 0:00:13]} 38. Rd1 {[%clk 0:00:38]}  Ke6 {[%clk 0:00:12]} 39. b4 {[%clk 0:00:33]}  Rh7 {[%clk 0:00:07]} 40. a4 {[%clk 0:00:29]}  Rc7 {[%clk 0:00:06]} 41. Ne3 {[%clk 0:00:28]}  Bb3 {[%clk 0:00:06]} 42. Rh1 {[%clk 0:00:27]}  Nd4 {[%clk 0:00:04]} 43. Rh6+ {[%clk 0:00:21]}  Kd7 {[%clk 0:00:04]} 44. a5 {[%clk 0:00:20]}  Rc1 {[%clk 0:00:03]} 45. g4 {[%clk 0:00:17]}  Nxe2 {[%clk 0:00:02]} 46. Kxe2 {[%clk 0:00:17]}  fxg4 {[%clk 0:00:03]} 47. Rg6 {[%clk 0:00:07]}  Rb1 {[%clk 0:00:02]} 48. Kd2 {[%clk 0:00:06]}  Ba4 {[%clk 0:00:01]} 49. Kc3 {[%clk 0:00:04]}  Rb3+ {[%clk 0:00:01]} 50. Kd4 {[%clk 0:00:05]}  Rxb4+ {[%clk 0:00:02]} 51. Ke5 {[%clk 0:00:04]}  Rb5+ {[%clk 0:00:02]} 52. Kd4 {[%clk 0:00:04]}  Rxa5 {[%clk 0:00:03]} 53. f5 {[%clk 0:00:04]}  Bc6 {[%clk 0:00:03]} 54. Rg7+ {[%clk 0:00:04]}  Ke8 {[%clk 0:00:03]} 55. f6 {[%clk 0:00:04]}  Kf8 {[%clk 0:00:04]} 56. Nxg4 {[%clk 0:00:03]}  Rf5 {[%clk 0:00:04]} 57. Rc7 {[%clk 0:00:02]}  Rf4 {[%clk 0:00:04]} 58. Ne5 {[%clk 0:00:01]}  e3+ {[%clk 0:00:04]} 59. Kd3 {[%clk 0:00:01]}  Rxf6 {[%clk 0:00:03]} 60. Kxe3 {[%clk 0:00:02]}  Re6 {[%clk 0:00:04]} 61. Kf4 {[%clk 0:00:02]}  Bh1 {[%clk 0:00:04]} 62. Kf5 {[%clk 0:00:02]}  Rd6 {[%clk 0:00:04]} 63. Kf4 {[%clk 0:00:01]}  Bd5 {[%clk 0:00:04]} 64. Rh7 {[%clk 0:00:01]}  Ke8 {[%clk 0:00:04]} 65. Rh8+ {[%clk 0:00:01]}  Ke7 {[%clk 0:00:05]} 66. Ke3 {[%clk 0:00:02]}  Re6 {[%clk 0:00:04]} 67. Kd4 {[%clk 0:00:02]}  Bg2 {[%clk 0:00:05]} 68. Rg8 {[%clk 0:00:02]}  Bh1 {[%clk 0:00:04]} 69. Rh8 {[%clk 0:00:02]}  Rd6+ {[%clk 0:00:05]} 70. Ke3 {[%clk 0:00:02]}  Bd5 {[%clk 0:00:05]} 71. Rh7+ {[%clk 0:00:02]}  Kd8 {[%clk 0:00:05]} 72. Rg7 {[%clk 0:00:01]}  Bc6 {[%clk 0:00:05]} 73. Nf7+ {[%clk 0:00:01]}  Kc7 {[%clk 0:00:05]} 74. Nxd6+ {[%clk 0:00:02]}  Kxd6 {[%clk 0:00:06]} 75. Kd4 {[%clk 0:00:03]}  a5 {[%clk 0:00:06]} 76. Rg6+ {[%clk 0:00:03]}  Kc7 {[%clk 0:00:06]} 77. Kc4 {[%clk 0:00:04]}  b6 {[%clk 0:00:06]} 78. Rh6 {[%clk 0:00:03]}  Bd7 {[%clk 0:00:06]} 79. Rf6 {[%clk 0:00:03]}  Bc6 {[%clk 0:00:06]} 80. Kd4 {[%clk 0:00:04]}  Bd7 {[%clk 0:00:07]} 81. Kd5 {[%clk 0:00:05]}  a4 {[%clk 0:00:07]} 82. Kc4 {[%clk 0:00:05]}  Bc6 {[%clk 0:00:07]} 83. Kd4 {[%clk 0:00:05]}  Kd7 {[%clk 0:00:07]} 84. Ke5 {[%clk 0:00:05]}  Kc7 {[%clk 0:00:07]} 85. Rf7+ {[%clk 0:00:05]}  Bd7 {[%clk 0:00:07]} 86. Kd5 {[%clk 0:00:05]}  a3 {[%clk 0:00:07]} 87. Rf2 {[%clk 0:00:04]}  Be8 {[%clk 0:00:05]} 88. Kc4 {[%clk 0:00:03]}  a2 {[%clk 0:00:06]} 89. Rf1 {[%clk 0:00:02]}  Kd6 {[%clk 0:00:04]} 90. Kb3 {[%clk 0:00:02]}  Bf7+ {[%clk 0:00:04]} 91. Kb2 {[%clk 0:00:02]}  Bc4 {[%clk 0:00:05]} 92. Rc1 {[%clk 0:00:02]}  Kc5 {[%clk 0:00:05]} 93. Rg1 {[%clk 0:00:03]}  b5 {[%clk 0:00:05]} 94. Rg5+ {[%clk 0:00:03]}  Kb4 {[%clk 0:00:05]} 95. Rg3 {[%clk 0:00:03]}  Ka4 {[%clk 0:00:05]} 96. Rh3 {[%clk 0:00:04]}  b4 {[%clk 0:00:05]} 97. Rh8 {[%clk 0:00:05]}  Kb5 {[%clk 0:00:06]} 98. Rb8+ {[%clk 0:00:05]}  Kc5 {[%clk 0:00:06]} 99. Rc8+ {[%clk 0:00:06]}  Kd4 {[%clk 0:00:06]} 100. Rh8 {[%clk 0:00:06]}  Be6 {[%clk 0:00:06]} 101. Re8 {[%clk 0:00:04]}  Bd5 {[%clk 0:00:05]} 102. Rc8 {[%clk 0:00:04]}  b3 {[%clk 0:00:06]} 103. Rc7 {[%clk 0:00:04]}  Bc4 {[%clk 0:00:06]} 104. Rd7+ {[%clk 0:00:04]}  Bd5 {[%clk 0:00:06]} 105. Rg7 {[%clk 0:00:05]}  Be6 {[%clk 0:00:06]} 106. Rg3 {[%clk 0:00:05]}  Kc4 {[%clk 0:00:05]} 107. Re3 {[%clk 0:00:02]}  Bd5 {[%clk 0:00:05]} 108. Re1 {[%clk 0:00:02]}  Kb4 {[%clk 0:00:05]} 109. Rd1 {[%clk 0:00:03]}  Bc4 {[%clk 0:00:05]} 110. Rd8 {[%clk 0:00:04]}  a1=Q+ {[%clk 0:00:05]} 111. Kxa1 {[%clk 0:00:04]}  Kc3 {[%clk 0:00:06]} 112. Rb8 {[%clk 0:00:04]}  Bd5 {[%clk 0:00:06]} 113. Rb6 {[%clk 0:00:03]}  Bc4 {[%clk 0:00:07]} 114. Kb1 {[%clk 0:00:03]}  Bd3+ {[%clk 0:00:07]} 115. Kc1 {[%clk 0:00:04]}  Bc4 {[%clk 0:00:08]} 116. Rb7 {[%clk 0:00:04]}  Be6 {[%clk 0:00:08]} 117. Rc7+ {[%clk 0:00:04]}  Bc4 {[%clk 0:00:08]} 118. Rc8 {[%clk 0:00:03]}  b2+ {[%clk 0:00:08]} 119. Kb1 {[%clk 0:00:04]}  Kb3 {[%clk 0:00:06]} 120. Rb8+ {[%clk 0:00:04]}  Kc3 {[%clk 0:00:06]} 121. Rxb2 {[%clk 0:00:05]}  Bd3+ {[%clk 0:00:07]} 122. Kc1 {[%clk 0:00:05]}  Be4 {[%clk 0:00:08]} 123. Rh2 {[%clk 0:00:04]}  Kd3 {[%clk 0:00:08]} 124. Kd1 {[%clk 0:00:04]}  Bf3+ {[%clk 0:00:07]} 125. Ke1 {[%clk 0:00:04]}  Bd5 {[%clk 0:00:08]} 126. Rh3+ {[%clk 0:00:04]}  Kc2 {[%clk 0:00:08]} 127. Ke2 {[%clk 0:00:02]}  Bc4+ {[%clk 0:00:08]} 128. Ke3 {[%clk 0:00:03]}  Bb5 {[%clk 0:00:07]} 129. Rh5 {[%clk 0:00:03]}  Bc4 {[%clk 0:00:06]} 130. Rc5 {[%clk 0:00:04]}  Kc3 {[%clk 0:00:07]} 131. Rc7 {[%clk 0:00:04]}  Kb4 {[%clk 0:00:07]} 132. Kd4 {[%clk 0:00:05]}  Ba6 {[%clk 0:00:07]} 133. Rc6 {[%clk 0:00:03]}  Bf1 {[%clk 0:00:06]} 134. Rb6+ {[%clk 0:00:03]}  Ka3 {[%clk 0:00:04]} 135. Kc3 {[%clk 0:00:03]}  Ka4 {[%clk 0:00:05]} 136. Rb1 {[%clk 0:00:03]}  Be2 {[%clk 0:00:04]} 137. Rb8 {[%clk 0:00:04]}  Bf1 {[%clk 0:00:04]} 138. Re8 {[%clk 0:00:03]}  Bg2 {[%clk 0:00:02]} 139. Re5 {[%clk 0:00:03]}  Bh1 {[%clk 0:00:02]} 140. Rf5 {[%clk 0:00:03]}  Bb7 {[%clk 0:00:02]} 141. Kc4 {[%clk 0:00:02]}  Be4 {[%clk 0:00:02]} 142. Rf8 {[%clk 0:00:01]}  Ka3 {[%clk 0:00:02]} 143. Re8 {[%clk 0:00:01]}  Bc2 {[%clk 0:00:02]} 144. Re2 {[%clk 0:00:01]}  Bb1 {[%clk 0:00:02]} 145. Kc3 {[%clk 0:00:01]}  Ka4 {[%clk 0:00:02]} 146. Re7 {[%clk 0:00:01]}  Ka5 {[%clk 0:00:02]} 147. Rb7 {[%clk 0:00:01]}  Be4 {[%clk 0:00:02]} 148. Re7 {[%clk 0:00:01]}  Bc6 {[%clk 0:00:02]} 149. Kc4 {[%clk 0:00:01]}  Kb6 {[%clk 0:00:03]} 150. Re6 {[%clk 0:00:02]}  Kc7 {[%clk 0:00:04]} 151. Kc5 {[%clk 0:00:03]}  Bf3 {[%clk 0:00:04]} 152. Re7+ {[%clk 0:00:03]}  Kd8 {[%clk 0:00:04]} 153. Kd6 {[%clk 0:00:04]}  Bh1 {[%clk 0:00:04]} 154. Rh7 {[%clk 0:00:04]}  Bc6 {[%clk 0:00:04]} 155. Rh8+ {[%clk 0:00:04]}  Be8 {[%clk 0:00:05]} 156. Rg8 {[%clk 0:00:05]}  Kc8 {[%clk 0:00:05]} 157. Rxe8+ {[%clk 0:00:05]}  Kb7 {[%clk 0:00:06]} 158. Rd8 {[%clk 0:00:06]} 1-0


[Site "https://www.chess.com"]

[Event "Titled Tuesday Blitz June 07 Early 2022"]
[White "Yang, Kaiqi"]
[Black "Rosen, Eric"]
[WhiteFideId "8604398"]
[BlackFideId "2032562"]
[WhiteElo "2373"]
[BlackElo "2362"]
[Result "1-0"]
[Round "11"]
[TimeControl "180+1"]
[Date "2022.06.07"]
[WhiteClock "0:00:20"]
[BlackClock "0:00:01"]

1. d4 {[%clk 0:03:00]}  d5 {[%clk 0:02:50]} 2. c4 {[%clk 0:03:00]}  e6 {[%clk 0:02:50]} 3. Nc3 {[%clk 0:02:59]}  Nf6 {[%clk 0:02:50]} 4. cxd5 {[%clk 0:02:56]}  exd5 {[%clk 0:02:51]} 5. Bg5 {[%clk 0:02:55]}  c6 {[%clk 0:02:46]} 6. e3 {[%clk 0:02:55]}  h6 {[%clk 0:02:44]} 7. Bh4 {[%clk 0:02:54]}  Bd6 {[%clk 0:02:44]} 8. Bd3 {[%clk 0:02:53]}  O-O {[%clk 0:02:44]} 9. Nge2 {[%clk 0:02:52]}  Re8 {[%clk 0:02:43]} 10. Qc2 {[%clk 0:02:51]}  a5 {[%clk 0:02:43]} 11. a3 {[%clk 0:02:48]}  Ra6 {[%clk 0:02:43]} 12. Bxa6 {[%clk 0:02:44]}  Nxa6 {[%clk 0:02:43]} 13. O-O {[%clk 0:02:42]}  Bxh2+ {[%clk 0:02:42]} 14. Kh1 {[%clk 0:02:37]}  Bd6 {[%clk 0:02:25]} 15. Kg1 {[%clk 0:02:19]}  Nc7 {[%clk 0:02:16]} 16. Qd2 {[%clk 0:02:11]}  Bf5 {[%clk 0:02:03]} 17. f3 {[%clk 0:02:10]}  Ne6 {[%clk 0:01:43]} 18. Rae1 {[%clk 0:02:05]}  Bg6 {[%clk 0:01:34]} 19. Nf4 {[%clk 0:01:52]}  Nxf4 {[%clk 0:01:07]} 20. exf4 {[%clk 0:01:52]}  Be7 {[%clk 0:01:08]} 21. Re5 {[%clk 0:01:47]}  Nd7 {[%clk 0:00:22]} 22. Rxe7 {[%clk 0:01:42]}  Rxe7 {[%clk 0:00:23]} 23. Bxe7 {[%clk 0:01:39]}  Qxe7 {[%clk 0:00:24]} 24. Re1 {[%clk 0:01:38]}  Qf6 {[%clk 0:00:24]} 25. g4 {[%clk 0:01:33]}  Qh4 {[%clk 0:00:12]} 26. Qf2 {[%clk 0:01:29]}  Qd8 {[%clk 0:00:11]} 27. f5 {[%clk 0:01:28]}  Bh7 {[%clk 0:00:12]} 28. Qe3 {[%clk 0:01:27]}  Kf8 {[%clk 0:00:12]} 29. Qf4 {[%clk 0:01:26]}  Nb6 {[%clk 0:00:10]} 30. b3 {[%clk 0:01:17]}  f6 {[%clk 0:00:08]} 31. a4 {[%clk 0:01:12]}  Bg8 {[%clk 0:00:08]} 32. Qc1 {[%clk 0:01:08]}  Nc8 {[%clk 0:00:05]} 33. Ne2 {[%clk 0:01:04]}  Qd6 {[%clk 0:00:04]} 34. Qc5 {[%clk 0:01:03]}  Qxc5 {[%clk 0:00:04]} 35. dxc5 {[%clk 0:01:03]}  Bf7 {[%clk 0:00:04]} 36. Nd4 {[%clk 0:01:03]}  Ne7 {[%clk 0:00:04]} 37. Rb1 {[%clk 0:00:52]}  Ke8 {[%clk 0:00:03]} 38. b4 {[%clk 0:00:53]}  Kd8 {[%clk 0:00:03]} 39. bxa5 {[%clk 0:00:52]}  Kc7 {[%clk 0:00:04]} 40. a6 {[%clk 0:00:50]}  bxa6 {[%clk 0:00:04]} 41. Rb6 {[%clk 0:00:50]}  Be8 {[%clk 0:00:03]} 42. Ne6+ {[%clk 0:00:43]}  Kd7 {[%clk 0:00:02]} 43. Rxa6 {[%clk 0:00:41]}  Nc8 {[%clk 0:00:02]} 44. Ra8 {[%clk 0:00:40]}  d4 {[%clk 0:00:01]} 45. Nxd4 {[%clk 0:00:38]}  Kc7 {[%clk 0:00:02]} 46. Ne6+ {[%clk 0:00:36]}  Kb7 {[%clk 0:00:02]} 47. Rxc8 {[%clk 0:00:36]}  Kxc8 {[%clk 0:00:03]} 48. Nxg7 {[%clk 0:00:36]}  Bf7 {[%clk 0:00:03]} 49. Kf2 {[%clk 0:00:36]}  Kb7 {[%clk 0:00:04]} 50. Ne6 {[%clk 0:00:33]}  Ka6 {[%clk 0:00:02]} 51. Nd4 {[%clk 0:00:32]}  Bd5 {[%clk 0:00:02]} 52. Ne2 {[%clk 0:00:20]}  Ka5 {[%clk 0:00:02]} 53. Nf4 {[%clk 0:00:20]}  Bc4 {[%clk 0:00:01]} 54. Nh5 {[%clk 0:00:20]}  Kxa4 {[%clk 0:00:01]} 55. Ke3 {[%clk 0:00:20]} 1-0